{"text_format":"3","workbook":"xlsx","n_sheets":1,"sheets":["Tulude ja kulude aruanne"],"not_rendered":{"defined_names":2},"read":"whole","date_system":"1900"}

{"sheet":"Tulude ja kulude aruanne","index":0,"n_rows":66,"n_cols":10,"rows_kept":66,"merged":[[10,1,10,9],[18,1,18,9],[27,1,27,9],[42,1,42,9],[48,1,48,9],[62,1,62,9]]}
[null,"Tulude ja kulude aruanne"]
[]
[{"$nulls":3},"EELMINE PERIOOD ","EELARVE ","PRAEGUNE PERIOOD ",null,"PRAEGUNE PERIOOD\nTULEMIPROTSENDINA ","MUUTUS (%) VÕRRELDES EELMISE PERIOODIGA ","MUUTUS (%) VÕRRELDES EELARVEGA "]
[null,"Müügitulu"]
[]
[null,"Toode/teenus 1",null,40,50,45,null,{"$f":"IFERROR(Müügitulud[[#This Row],[praegune periood ]]/SUBTOTAL(109,Müügitulud[[praegune periood ]]),0)","v":{"v":1,"d":"100.0%"}},{"$f":"IFERROR(Müügitulud[[#This Row],[praegune periood ]]/Müügitulud[[#This Row],[eelmine periood]]-1,0)","v":{"v":0.125,"d":"12.5%"}},{"$f":"IFERROR(Müügitulud[[#This Row],[praegune periood ]]/Müügitulud[[#This Row],[Eelarve]]-1,0)","v":{"v":-0.09999999999999998,"d":"-10.0%"}}]
[null,"Toode/teenus 2",{"$nulls":5},{"$f":"IFERROR(Müügitulud[[#This Row],[praegune periood ]]/SUBTOTAL(109,Müügitulud[[praegune periood ]]),0)","v":0},{"$f":"IFERROR(Müügitulud[[#This Row],[praegune periood ]]/Müügitulud[[#This Row],[eelmine periood]]-1,0)","v":0},{"$f":"IFERROR(Müügitulud[[#This Row],[praegune periood ]]/Müügitulud[[#This Row],[Eelarve]]-1,0)","v":0}]
[null,"Toode/teenus 3",{"$nulls":5},{"$f":"IFERROR(Müügitulud[[#This Row],[praegune periood ]]/SUBTOTAL(109,Müügitulud[[praegune periood ]]),0)","v":0},{"$f":"IFERROR(Müügitulud[[#This Row],[praegune periood ]]/Müügitulud[[#This Row],[eelmine periood]]-1,0)","v":0},{"$f":"IFERROR(Müügitulud[[#This Row],[praegune periood ]]/Müügitulud[[#This Row],[Eelarve]]-1,0)","v":0}]
[null,"Toode/teenus 4",{"$nulls":5},{"$f":"IFERROR(Müügitulud[[#This Row],[praegune periood ]]/SUBTOTAL(109,Müügitulud[[praegune periood ]]),0)","v":0},{"$f":"IFERROR(Müügitulud[[#This Row],[praegune periood ]]/Müügitulud[[#This Row],[eelmine periood]]-1,0)","v":0},{"$f":"IFERROR(Müügitulud[[#This Row],[praegune periood ]]/Müügitulud[[#This Row],[Eelarve]]-1,0)","v":0}]
[null,"Kokku",null,{"$f":"SUBTOTAL(109,Müügitulud[eelmine periood])","v":40},{"$f":"SUBTOTAL(109,Müügitulud[Eelarve])","v":50},{"$f":"SUBTOTAL(109,Müügitulud[[praegune periood ]])","v":45},null,{"$f":"IFERROR(Müügitulud[[#Totals],[praegune periood ]]/Müügitulud[[#Totals],[praegune periood ]],0)","v":{"v":1,"d":"100.0%"}},{"$f":"IFERROR(Müügitulud[[#Totals],[praegune periood ]]/Müügitulud[[#Totals],[eelmine periood]]-1,0)","v":{"v":0.125,"d":"12.5%"}},{"$f":"IFERROR(Müügitulud[[#Totals],[praegune periood ]]/Müügitulud[[#Totals],[Eelarve]]-1,0)","v":{"v":-0.09999999999999998,"d":"-10.0%"}}]
[]
[null,"Müügikulu"]
[]
[null,"Toode/teenus 1",null,null,2,3,null,{"$f":"IFERROR(Müügikulu[[#This Row],[praegune periood ]]/SUBTOTAL(109,Müügitulud[[praegune periood ]]),0)","v":{"v":0.06666666666666667,"d":"6.7%"}},{"$f":"IFERROR(Müügikulu[[#This Row],[praegune periood ]]/Müügikulu[[#This Row],[eelmine periood]]-1,0)","v":0},{"$f":"IFERROR(Müügikulu[[#This Row],[praegune periood ]]/Müügikulu[[#This Row],[Eelarve]]-1,0)","v":{"v":0.5,"d":"50.0%"}}]
[null,"Toode/teenus 2",null,null,5,3,null,{"$f":"IFERROR(Müügikulu[[#This Row],[praegune periood ]]/SUBTOTAL(109,Müügitulud[[praegune periood ]]),0)","v":{"v":0.06666666666666667,"d":"6.7%"}},{"$f":"IFERROR(Müügikulu[[#This Row],[praegune periood ]]/Müügikulu[[#This Row],[eelmine periood]]-1,0)","v":0},{"$f":"IFERROR(Müügikulu[[#This Row],[praegune periood ]]/Müügikulu[[#This Row],[Eelarve]]-1,0)","v":{"v":-0.4,"d":"-40.0%"}}]
[null,"Toode/teenus 3",{"$nulls":3},1,null,{"$f":"IFERROR(Müügikulu[[#This Row],[praegune periood ]]/SUBTOTAL(109,Müügitulud[[praegune periood ]]),0)","v":{"v":0.022222222222222223,"d":"2.2%"}},{"$f":"IFERROR(Müügikulu[[#This Row],[praegune periood ]]/Müügikulu[[#This Row],[eelmine periood]]-1,0)","v":0},{"$f":"IFERROR(Müügikulu[[#This Row],[praegune periood ]]/Müügikulu[[#This Row],[Eelarve]]-1,0)","v":0}]
[null,"Toode/teenus 4",{"$nulls":5},{"$f":"IFERROR(Müügikulu[[#This Row],[praegune periood ]]/SUBTOTAL(109,Müügitulud[[praegune periood ]]),0)","v":0},{"$f":"IFERROR(Müügikulu[[#This Row],[praegune periood ]]/Müügikulu[[#This Row],[eelmine periood]]-1,0)","v":0},{"$f":"IFERROR(Müügikulu[[#This Row],[praegune periood ]]/Müügikulu[[#This Row],[Eelarve]]-1,0)","v":0}]
[null,"Kokku",null,{"$f":"SUBTOTAL(109,Müügikulu[eelmine periood])","v":0},{"$f":"SUBTOTAL(109,Müügikulu[Eelarve])","v":7},{"$f":"SUBTOTAL(109,Müügikulu[[praegune periood ]])","v":7},null,{"$f":"IFERROR(Müügikulu[[#Totals],[praegune periood ]]/SUBTOTAL(109,Müügitulud[[praegune periood ]]),0)","v":{"v":0.15555555555555556,"d":"15.6%"}},{"$f":"IFERROR(Müügikulu[[#Totals],[praegune periood ]]/Müügikulu[[#Totals],[eelmine periood]]-1,0)","v":0},{"$f":"IFERROR(Müügikulu[[#Totals],[praegune periood ]]/Müügikulu[[#Totals],[Eelarve]]-1,0)","v":0}]
[]
[null,"Brutokasum",null,{"$f":"SUM(Müügitulud[eelmine periood])-SUM(Müügikulu[eelmine periood])","v":40},{"$f":"SUM(Müügitulud[Eelarve])-SUM(Müügikulu[Eelarve])","v":43},{"$f":"SUM(Müügitulud[[praegune periood ]])-SUM(Müügikulu[[praegune periood ]])","v":38},null,{"$f":"IFERROR(F20/SUBTOTAL(109,Müügitulud[[praegune periood ]]),0)","v":{"v":0.8444444444444444,"d":"84.4%"}},{"$f":"IFERROR(F20/D20-1,0)","v":{"v":-0.050000000000000044,"d":"-5.0%"}},{"$f":"IFERROR(F20/E20-1,0)","v":{"v":-0.11627906976744184,"d":"-11.6%"}}]
[]
[null,"Ärikulud: müük ja turundus"]
[]
[null,"Reklaam",null,null,22,19,null,{"$f":"IFERROR(MüükJaTurundus[[#This Row],[praegune periood ]]/SUBTOTAL(109,Müügitulud[[praegune periood ]]),0)","v":{"v":0.4222222222222222,"d":"42.2%"}},{"$f":"IFERROR(MüükJaTurundus[[#This Row],[praegune periood ]]/MüükJaTurundus[[#This Row],[eelmine periood]]-1,0)","v":0},{"$f":"IFERROR(MüükJaTurundus[[#This Row],[praegune periood ]]/MüükJaTurundus[[#This Row],[Eelarve]]-1,0)","v":{"v":-0.13636363636363635,"d":"-13.6%"}}]
[null,"Otseturundus",{"$nulls":5},{"$f":"IFERROR(MüükJaTurundus[[#This Row],[praegune periood ]]/SUBTOTAL(109,Müügitulud[[praegune periood ]]),0)","v":0},{"$f":"IFERROR(MüükJaTurundus[[#This Row],[praegune periood ]]/MüükJaTurundus[[#This Row],[eelmine periood]]-1,0)","v":0},{"$f":"IFERROR(MüükJaTurundus[[#This Row],[praegune periood ]]/MüükJaTurundus[[#This Row],[Eelarve]]-1,0)","v":0}]
[null,"Muud kulud (täpsustada)",{"$nulls":5},{"$f":"IFERROR(MüükJaTurundus[[#This Row],[praegune periood ]]/SUBTOTAL(109,Müügitulud[[praegune periood ]]),0)","v":0},{"$f":"IFERROR(MüükJaTurundus[[#This Row],[praegune periood ]]/MüükJaTurundus[[#This Row],[eelmine periood]]-1,0)","v":0},{"$f":"IFERROR(MüükJaTurundus[[#This Row],[praegune periood ]]/MüükJaTurundus[[#This Row],[Eelarve]]-1,0)","v":0}]
[null,"Kokku",null,{"$f":"SUBTOTAL(109,MüükJaTurundus[eelmine periood])","v":0},{"$f":"SUBTOTAL(109,MüükJaTurundus[Eelarve])","v":22},{"$f":"SUBTOTAL(109,MüükJaTurundus[[praegune periood ]])","v":19},null,{"$f":"IFERROR(MüükJaTurundus[[#Totals],[praegune periood ]]/SUBTOTAL(109,Müügitulud[[praegune periood ]]),0)","v":{"v":0.4222222222222222,"d":"42.2%"}},{"$f":"IFERROR(MüükJaTurundus[[#Totals],[praegune periood ]]/MüükJaTurundus[[#Totals],[eelmine periood]]-1,0)","v":0},{"$f":"IFERROR(MüükJaTurundus[[#Totals],[praegune periood ]]/MüükJaTurundus[[#Totals],[Eelarve]]-1,0)","v":{"v":-0.13636363636363635,"d":"-13.6%"}}]
[]
[null,"Ärikulud: üldhalduskulu"]
[]
[null,"Palgakulu",null,null,56,51,null,{"$f":"IFERROR(Üldhalduskulu[[#This Row],[praegune periood ]]/SUBTOTAL(109,Müügitulud[[praegune periood ]]),0)","v":{"v":1.1333333333333333,"d":"113.3%"}},{"$f":"IFERROR(Üldhalduskulu[[#This Row],[praegune periood ]]/Üldhalduskulu[[#This Row],[eelmine periood]]-1,0)","v":0},{"$f":"IFERROR(Üldhalduskulu[[#This Row],[praegune periood ]]/Üldhalduskulu[[#This Row],[Eelarve]]-1,0)","v":{"v":-0.0892857142857143,"d":"-8.9%"}}]
[null,"Välisteenused",{"$nulls":5},{"$f":"IFERROR(Üldhalduskulu[[#This Row],[praegune periood ]]/SUBTOTAL(109,Müügitulud[[praegune periood ]]),0)","v":0},{"$f":"IFERROR(Üldhalduskulu[[#This Row],[praegune periood ]]/Üldhalduskulu[[#This Row],[eelmine periood]]-1,0)","v":0},{"$f":"IFERROR(Üldhalduskulu[[#This Row],[praegune periood ]]/Üldhalduskulu[[#This Row],[Eelarve]]-1,0)","v":0}]
[null,"Tarvikud",{"$nulls":5},{"$f":"IFERROR(Üldhalduskulu[[#This Row],[praegune periood ]]/SUBTOTAL(109,Müügitulud[[praegune periood ]]),0)","v":0},{"$f":"IFERROR(Üldhalduskulu[[#This Row],[praegune periood ]]/Üldhalduskulu[[#This Row],[eelmine periood]]-1,0)","v":0},{"$f":"IFERROR(Üldhalduskulu[[#This Row],[praegune periood ]]/Üldhalduskulu[[#This Row],[Eelarve]]-1,0)","v":0}]
[null,"Söök ja meelelahutus",{"$nulls":5},{"$f":"IFERROR(Üldhalduskulu[[#This Row],[praegune periood ]]/SUBTOTAL(109,Müügitulud[[praegune periood ]]),0)","v":0},{"$f":"IFERROR(Üldhalduskulu[[#This Row],[praegune periood ]]/Üldhalduskulu[[#This Row],[eelmine periood]]-1,0)","v":0},{"$f":"IFERROR(Üldhalduskulu[[#This Row],[praegune periood ]]/Üldhalduskulu[[#This Row],[Eelarve]]-1,0)","v":0}]
[null,"Üür",{"$nulls":5},{"$f":"IFERROR(Üldhalduskulu[[#This Row],[praegune periood ]]/SUBTOTAL(109,Müügitulud[[praegune periood ]]),0)","v":0},{"$f":"IFERROR(Üldhalduskulu[[#This Row],[praegune periood ]]/Üldhalduskulu[[#This Row],[eelmine periood]]-1,0)","v":0},{"$f":"IFERROR(Üldhalduskulu[[#This Row],[praegune periood ]]/Üldhalduskulu[[#This Row],[Eelarve]]-1,0)","v":0}]
[null,"Telefon",{"$nulls":5},{"$f":"IFERROR(Üldhalduskulu[[#This Row],[praegune periood ]]/SUBTOTAL(109,Müügitulud[[praegune periood ]]),0)","v":0},{"$f":"IFERROR(Üldhalduskulu[[#This Row],[praegune periood ]]/Üldhalduskulu[[#This Row],[eelmine periood]]-1,0)","v":0},{"$f":"IFERROR(Üldhalduskulu[[#This Row],[praegune periood ]]/Üldhalduskulu[[#This Row],[Eelarve]]-1,0)","v":0}]
[null,"Kommunaalteenused",{"$nulls":5},{"$f":"IFERROR(Üldhalduskulu[[#This Row],[praegune periood ]]/SUBTOTAL(109,Müügitulud[[praegune periood ]]),0)","v":0},{"$f":"IFERROR(Üldhalduskulu[[#This Row],[praegune periood ]]/Üldhalduskulu[[#This Row],[eelmine periood]]-1,0)","v":0},{"$f":"IFERROR(Üldhalduskulu[[#This Row],[praegune periood ]]/Üldhalduskulu[[#This Row],[Eelarve]]-1,0)","v":0}]
[null,"Amortisatsioon",{"$nulls":5},{"$f":"IFERROR(Üldhalduskulu[[#This Row],[praegune periood ]]/SUBTOTAL(109,Müügitulud[[praegune periood ]]),0)","v":0},{"$f":"IFERROR(Üldhalduskulu[[#This Row],[praegune periood ]]/Üldhalduskulu[[#This Row],[eelmine periood]]-1,0)","v":0},{"$f":"IFERROR(Üldhalduskulu[[#This Row],[praegune periood ]]/Üldhalduskulu[[#This Row],[Eelarve]]-1,0)","v":0}]
[null,"Kindlustus",{"$nulls":5},{"$f":"IFERROR(Üldhalduskulu[[#This Row],[praegune periood ]]/SUBTOTAL(109,Müügitulud[[praegune periood ]]),0)","v":0},{"$f":"IFERROR(Üldhalduskulu[[#This Row],[praegune periood ]]/Üldhalduskulu[[#This Row],[eelmine periood]]-1,0)","v":0},{"$f":"IFERROR(Üldhalduskulu[[#This Row],[praegune periood ]]/Üldhalduskulu[[#This Row],[Eelarve]]-1,0)","v":0}]
[null,"Remont ja hooldus",{"$nulls":5},{"$f":"IFERROR(Üldhalduskulu[[#This Row],[praegune periood ]]/SUBTOTAL(109,Müügitulud[[praegune periood ]]),0)","v":0},{"$f":"IFERROR(Üldhalduskulu[[#This Row],[praegune periood ]]/Üldhalduskulu[[#This Row],[eelmine periood]]-1,0)","v":0},{"$f":"IFERROR(Üldhalduskulu[[#This Row],[praegune periood ]]/Üldhalduskulu[[#This Row],[Eelarve]]-1,0)","v":0}]
[null,"Muud kulud (täpsustada)",{"$nulls":5},{"$f":"IFERROR(Üldhalduskulu[[#This Row],[praegune periood ]]/SUBTOTAL(109,Müügitulud[[praegune periood ]]),0)","v":0},{"$f":"IFERROR(Üldhalduskulu[[#This Row],[praegune periood ]]/Üldhalduskulu[[#This Row],[eelmine periood]]-1,0)","v":0},{"$f":"IFERROR(Üldhalduskulu[[#This Row],[praegune periood ]]/Üldhalduskulu[[#This Row],[Eelarve]]-1,0)","v":0}]
[null,"Kokku",null,{"$f":"SUBTOTAL(109,Üldhalduskulu[eelmine periood])","v":0},{"$f":"SUBTOTAL(109,Üldhalduskulu[Eelarve])","v":56},{"$f":"SUBTOTAL(109,Üldhalduskulu[[praegune periood ]])","v":51},null,{"$f":"IFERROR(Üldhalduskulu[[#Totals],[praegune periood ]]/SUBTOTAL(109,Müügitulud[[praegune periood ]]),0)","v":{"v":1.1333333333333333,"d":"113.3%"}},{"$f":"IFERROR(Üldhalduskulu[[#Totals],[praegune periood ]]/Üldhalduskulu[[#Totals],[eelmine periood]]-1,0)","v":0},{"$f":"IFERROR(Üldhalduskulu[[#Totals],[praegune periood ]]/Üldhalduskulu[[#Totals],[Eelarve]]-1,0)","v":{"v":-0.0892857142857143,"d":"-8.9%"}}]
[]
[null,"Ärikulud: muu"]
[]
[null,"Muud ärikulud 1",null,null,10,null,null,{"$f":"IFERROR(MuudeÄrikuludeKategooria[[#This Row],[praegune periood ]]/SUBTOTAL(109,Müügitulud[[praegune periood ]]),0)","v":0},{"$f":"IFERROR(MuudeÄrikuludeKategooria[[#This Row],[praegune periood ]]/MuudeÄrikuludeKategooria[[#This Row],[eelmine periood]]-1,0)","v":0},{"$f":"IFERROR(MuudeÄrikuludeKategooria[[#This Row],[praegune periood ]]/MuudeÄrikuludeKategooria[[#This Row],[Eelarve]]-1,0)","v":{"v":-1,"d":"-100.0%"}}]
[null,"Muud ärikulud 2",{"$nulls":5},{"$f":"IFERROR(MuudeÄrikuludeKategooria[[#This Row],[praegune periood ]]/SUBTOTAL(109,Müügitulud[[praegune periood ]]),0)","v":0},{"$f":"IFERROR(MuudeÄrikuludeKategooria[[#This Row],[praegune periood ]]/MuudeÄrikuludeKategooria[[#This Row],[eelmine periood]]-1,0)","v":0},{"$f":"IFERROR(MuudeÄrikuludeKategooria[[#This Row],[praegune periood ]]/MuudeÄrikuludeKategooria[[#This Row],[Eelarve]]-1,0)","v":0}]
[null,"Kokku",null,{"$f":"SUBTOTAL(109,MuudeÄrikuludeKategooria[eelmine periood])","v":0},{"$f":"SUBTOTAL(109,MuudeÄrikuludeKategooria[Eelarve])","v":10},{"$f":"SUBTOTAL(109,MuudeÄrikuludeKategooria[[praegune periood ]])","v":0},null,{"$f":"IFERROR(MuudeÄrikuludeKategooria[[#Totals],[praegune periood ]]/SUBTOTAL(109,Müügitulud[[praegune periood ]]),0)","v":0},{"$f":"IFERROR(MuudeÄrikuludeKategooria[[#Totals],[praegune periood ]]/MuudeÄrikuludeKategooria[[#Totals],[eelmine periood]]-1,0)","v":0},{"$f":"IFERROR(MuudeÄrikuludeKategooria[[#Totals],[praegune periood ]]/MuudeÄrikuludeKategooria[[#Totals],[Eelarve]]-1,0)","v":{"v":-1,"d":"-100.0%"}}]
[]
[null,"Ärikulud kokku",null,{"$f":"SUM(MüükJaTurundus[eelmine periood],Üldhalduskulu[eelmine periood],MuudeÄrikuludeKategooria[eelmine periood])","v":0},{"$f":"SUM(MüükJaTurundus[Eelarve],Üldhalduskulu[Eelarve],MuudeÄrikuludeKategooria[Eelarve])","v":88},{"$f":"SUM(MüükJaTurundus[[praegune periood ]],Üldhalduskulu[[praegune periood ]],MuudeÄrikuludeKategooria[[praegune periood ]])","v":70},null,{"$f":"IFERROR(F50/SUBTOTAL(109,Müügitulud[[praegune periood ]]),0)","v":{"v":1.5555555555555556,"d":"155.6%"}},{"$f":"IFERROR(F50/D50-1,0)","v":0},{"$f":"IFERROR(F50/E50-1,0)","v":{"v":-0.20454545454545459,"d":"-20.5%"}}]
[]
[null,"Äritulud",null,{"$f":"D20-D50","v":40},{"$f":"E20-E50","v":-45},{"$f":"F20-F50","v":-32},null,{"$f":"IFERROR(F52/SUBTOTAL(109,Müügitulud[[praegune periood ]]),0)","v":{"v":-0.7111111111111111,"d":"-71.1%"}},{"$f":"IFERROR(IF(D52=F52,0,IF(F52>D52,ABS((F52/D52)-1),IF(AND(F52<D52,D52<0),-((F52/D52)-1),(F52/D52)-1))),0)","v":{"v":-1.8,"d":"-180.0%"}},{"$f":"IFERROR(IF(E52=F52,0,IF(F52>E52,ABS((F52/E52)-1),IF(AND(F52<E52,E52<0),-((F52/E52)-1),(F52/E52)-1))),0)","v":{"v":0.28888888888888886,"d":"28.9%"}}]
[]
[null,"Muud tulud",{"$nulls":5},{"$f":"IFERROR(F54/SUBTOTAL(109,Müügitulud[[praegune periood ]]),0)","v":0},{"$f":"IFERROR(F54/D54-1,0)","v":0},{"$f":"IFERROR(F54/E54-1,0)","v":0}]
[]
[null,"Maksud"]
[]
[null,"Tulumaks",null,null,32,30,null,{"$f":"IFERROR(Maksud[[#This Row],[praegune periood ]]/SUBTOTAL(109,Müügitulud[[praegune periood ]]),0)","v":{"v":0.6666666666666666,"d":"66.7%"}},{"$f":"IFERROR(Maksud[[#This Row],[praegune periood ]]/Maksud[[#This Row],[eelmine periood]]-1,0)","v":0},{"$f":"IFERROR(Maksud[[#This Row],[praegune periood ]]/Maksud[[#This Row],[Eelarve]]-1,0)","v":{"v":-0.0625,"d":"-6.3%"}}]
[null,"Palgafondi maksud",{"$nulls":5},{"$f":"IFERROR(Maksud[[#This Row],[praegune periood ]]/SUBTOTAL(109,Müügitulud[[praegune periood ]]),0)","v":0},{"$f":"IFERROR(Maksud[[#This Row],[praegune periood ]]/Maksud[[#This Row],[eelmine periood]]-1,0)","v":0},{"$f":"IFERROR(Maksud[[#This Row],[praegune periood ]]/Maksud[[#This Row],[Eelarve]]-1,0)","v":0}]
[null,"Kinnisvaramaksud",{"$nulls":5},{"$f":"IFERROR(Maksud[[#This Row],[praegune periood ]]/SUBTOTAL(109,Müügitulud[[praegune periood ]]),0)","v":0},{"$f":"IFERROR(Maksud[[#This Row],[praegune periood ]]/Maksud[[#This Row],[eelmine periood]]-1,0)","v":0},{"$f":"IFERROR(Maksud[[#This Row],[praegune periood ]]/Maksud[[#This Row],[Eelarve]]-1,0)","v":0}]
[null,"Muud maksud (täpsustada)",{"$nulls":5},{"$f":"IFERROR(Maksud[[#This Row],[praegune periood ]]/SUBTOTAL(109,Müügitulud[[praegune periood ]]),0)","v":0},{"$f":"IFERROR(Maksud[[#This Row],[praegune periood ]]/Maksud[[#This Row],[eelmine periood]]-1,0)","v":0},{"$f":"IFERROR(Maksud[[#This Row],[praegune periood ]]/Maksud[[#This Row],[Eelarve]]-1,0)","v":0}]
[null,"Kokku",null,{"$f":"SUBTOTAL(109,Maksud[eelmine periood])","v":0},{"$f":"SUBTOTAL(109,Maksud[Eelarve])","v":32},{"$f":"SUBTOTAL(109,Maksud[[praegune periood ]])","v":30},null,{"$f":"IFERROR(Maksud[[#Totals],[praegune periood ]]/SUBTOTAL(109,Müügitulud[[praegune periood ]]),0)","v":{"v":0.6666666666666666,"d":"66.7%"}},{"$f":"IFERROR(Maksud[[#Totals],[praegune periood ]]/Maksud[[#Totals],[eelmine periood]]-1,0)","v":0},{"$f":"IFERROR(Maksud[[#Totals],[praegune periood ]]/Maksud[[#Totals],[Eelarve]]-1,0)","v":{"v":-0.0625,"d":"-6.3%"}}]
[]
[null,"Netokasum",null,{"$f":"D52+D54-Maksud[[#Totals],[eelmine periood]]","v":40},{"$f":"E52+E54-Maksud[[#Totals],[eelmine periood]]","v":-45},{"$f":"F52+F54-Maksud[[#Totals],[eelmine periood]]","v":-32},null,{"$f":"IFERROR(F64/SUBTOTAL(109,Müügitulud[[praegune periood ]]),0)","v":{"v":-0.7111111111111111,"d":"-71.1%"}},{"$f":"IFERROR(IF(D64=F64,0,IF(F64>D64,ABS((F64/D64)-1),IF(AND(F64<D64,D64<0),-((F64/D64)-1),(F64/D64)-1))),0)","v":{"v":-1.8,"d":"-180.0%"}},{"$f":"IFERROR(IF(E64=F64,0,IF(F64>E64,ABS((F64/E64)-1),IF(AND(F64<E64,E64<0),-((F64/E64)-1),(F64/E64)-1))),0)","v":{"v":0.28888888888888886,"d":"28.9%"}}]
[null,"Brutorentaablus",null,{"$f":"D20/SUM(Müügitulud[eelmine periood])","v":{"v":1,"d":"100.0%"}},{"$f":"E20/SUM(Müügitulud[Eelarve])","v":{"v":0.86,"d":"86.0%"}},{"$f":"F20/SUM(Müügitulud[[praegune periood ]])","v":{"v":0.8444444444444444,"d":"84.4%"}}]
[null,"Müügitulu",null,{"$f":"D64/SUM(Müügitulud[eelmine periood])","v":{"v":1,"d":"100.0%"}},{"$f":"E64/SUM(Müügitulud[Eelarve])","v":{"v":-0.9,"d":"-90.0%"}},{"$f":"F64/SUM(Müügitulud[[praegune periood ]])","v":{"v":-0.7111111111111111,"d":"-71.1%"}}]